bitfinex/quotes_BTCUSD_20251110
["timestamp","ask_amount","ask_price","bid_price","bid_amount"]
[1762767435650,0.10164,106530.0,106520.0,0.40928543]
[1762767435845,0.3646357,106530.0,106520.0,0.40928543]
[1762767436074,0.17689516,106530.0,106520.0,0.40928543]
[1762767436276,0.3646357,106530.0,106520.0,0.35911774]
[1762767436481,0.17689516,106530.0,106520.0,0.40928543]
[1762767436884,0.28938054,106530.0,106520.0,0.40928543]
[1762767437029,0.3646357,106530.0,106520.0,0.35911774]
[1762767437434,0.3646357,106530.0,106520.0,0.40928543]
[1762767438268,0.3646357,106530.0,106520.0,0.02927897]
[1762767438470,0.3646357,106530.0,106520.0,0.40928543]
[1762767438650,0.10164,106530.0,106520.0,0.40928543]
[1762767438848,0.3646357,106530.0,106520.0,0.40928543]
[1762767439111,0.3646357,106530.0,106520.0,0.07944666]
[1762767439239,0.3646357,106530.0,106520.0,0.40928543]
[1762767439443,0.3646357,106530.0,106520.0,0.07944666]
[1762767439644,0.10164,106530.0,106520.0,0.40928543]
[1762767441216,0.10164,106530.0,106520.0,0.59704359]
[1762767442874,0.10164,106530.0,106520.0,0.92688236]
[1762767443070,0.10164,106530.0,106520.0,0.92579091]
[1762767443281,0.05438,106530.0,106520.0,0.92579091]
[1762767443502,0.05438,106530.0,106520.0,0.94579091]
[1762767444321,0.05438,106530.0,106520.0,0.87562322]
[1762767444557,0.02342,106530.0,106520.0,0.89562322]
[1762767445557,0.001,106530.0,106520.0,0.89562322]
[1762767446872,0.001,106530.0,106520.0,0.87562322]
[1762767447092,0.001,106530.0,106520.0,0.55941491]
[1762767447309,0.001,106530.0,106520.0,1.63183673]
[1762767447546,0.001,106530.0,106520.0,1.66801901]
[1762767447774,0.00013644,106530.0,106520.0,1.69019547]
[1762767447985,0.00013644,106530.0,106520.0,1.5844431]
[1762767448238,0.00013644,106530.0,106520.0,1.7013089]
[1762767448657,0.00023226,106560.0,106550.0,0.1877053]
[1762767448882,0.00023226,106560.0,106550.0,0.57679042]
[1762767449081,0.04868226,106560.0,106550.0,0.56804227]
[1762767449313,0.04868226,106560.0,106550.0,0.59621743]
[1762767449545,0.09062226,106560.0,106550.0,0.59574855]
[1762767449759,0.09062226,106560.0,106550.0,0.61574855]
[1762767450211,0.04868226,106560.0,106550.0,0.07820448]
[1762767450423,0.09062226,106560.0,106550.0,0.40804325]
[1762767450633,0.09062226,106560.0,106550.0,0.40851213]
[1762767450859,0.27830994,106560.0,106550.0,0.07867373]
[1762767451072,0.27830994,106560.0,106550.0,0.02817516]
[1762767451713,0.28530994,106560.0,106550.0,0.02817516]
[1762767454203,0.09762226,106560.0,106550.0,0.02817516]
[1762767454406,0.28530994,106560.0,106550.0,0.02817516]
[1762767457278,0.28530994,106560.0,106530.0,0.37349854]
[1762767457279,0.62448283,106560.0,106530.0,0.37349854]
[1762767457496,0.2503907,106550.0,106530.0,0.38028705]
[1762767457706,0.04845,106540.0,106530.0,0.33025773]
[1762767458122,0.09039,106540.0,106530.0,0.35843678]
[1762767458537,0.09039,106540.0,106530.0,0.35796756]
[1762767458746,0.27811292,106540.0,106530.0,0.35796756]
[1762767458952,0.27811292,106540.0,106530.0,0.02817905]
[1762767459568,0.27911292,106540.0,106530.0,0.02817905]
[1762767460442,0.3353948,106540.0,106530.0,0.02817905]
[1762767460649,0.18774054,106530.0,106510.0,0.38028285]
[1762767460856,0.04845,106520.0,106510.0,0.38076747]
[1762767461111,0.09039,106520.0,106510.0,0.05097896]
[1762767461317,0.09039,106520.0,106510.0,0.38029837]
[1762767461537,0.09039,106520.0,106510.0,0.3807678]
[1762767461758,0.27814816,106520.0,106510.0,0.07869545]
[1762767461993,0.27814816,106520.0,106510.0,0.02913556]
[1762767462222,0.27814816,106520.0,106510.0,0.00348054]
[1762767462425,0.27814816,106520.0,106510.0,0.00548054]
[1762767462607,0.27814816,106520.0,106510.0,0.00248054]
[1762767462767,0.27814816,106520.0,106510.0,0.00548054]
[1762767462981,0.27814816,106520.0,106510.0,0.00348054]
[1762767463375,0.27814816,106520.0,106510.0,0.00148054]
[1762767464050,0.65080693,106520.0,106510.0,0.00148054]
[1762767464682,0.65080693,106520.0,106510.0,0.00248054]
[1762767465030,0.65080693,106520.0,106510.0,0.00148054]
[1762767465443,0.61193667,106520.0,106510.0,0.00148054]
[1762767465628,0.61193667,106520.0,106510.0,0.00048054]
[1762767468086,0.28214816,106520.0,106510.0,0.00048054]
[1762767469129,0.10214816,106520.0,106510.0,0.00048054]
[1762767469308,0.17079793,106520.0,106510.0,0.00048054]
[1762767471107,0.20890793,106520.0,106510.0,0.00048054]
[1762767474126,0.11075977,106520.0,106510.0,0.00048054]
[1762767474327,0.04918,106520.0,106510.0,0.52727951]
[1762767474702,0.04918,106520.0,106510.0,0.35892348]
[1762767475204,0.27494816,106520.0,106510.0,0.02866624]
[1762767475429,0.36379442,106520.0,106510.0,0.00048054]
[1762767475585,0.36479442,106520.0,106510.0,0.00048054]
[1762767475989,0.27594816,106520.0,106510.0,0.00048054]
[1762767476190,0.08819,106520.0,106510.0,0.00048054]
[1762767476392,0.04618,106520.0,106510.0,0.52727951]
[1762767476592,0.04618,106520.0,106510.0,0.51804484]
[1762767477158,0.001,106520.0,106510.0,0.5933]
[1762767477368,0.001,106520.0,106510.0,0.6133]
[1762767478215,0.001,106520.0,106510.0,0.61376943]
[1762767478415,0.001,106520.0,106510.0,0.59376943]
[1762767479015,0.001,106520.0,106510.0,0.61376943]
[1762767479531,0.001,106520.0,106510.0,0.59376943]
[1762767479899,0.001,106520.0,106510.0,0.61376943]
[1762767480075,0.001,106520.0,106510.0,0.66379875]
[1762767480257,0.001,106520.0,106510.0,0.64379875]
[1762767480564,0.001,106520.0,106510.0,0.66379875]
[1762767480805,0.001,106520.0,106510.0,0.64379875]
[1762767481064,0.001,106520.0,106510.0,0.66379875]
[1762767481269,0.001,106520.0,106510.0,0.66229875]
[1762767481468,0.001,106520.0,106510.0,0.64229875]
[1762767481875,0.001,106520.0,106510.0,0.23725508]
[1762767482084,0.001,106520.0,106510.0,0.51701427]
[1762767482282,0.001,106520.0,106510.0,0.59226943]
[1762767482493,0.001,106520.0,106510.0,0.5918]
[1762767483024,0.001,106520.0,106510.0,0.59226943]
[1762767483247,0.001,106520.0,106510.0,0.64229875]
[1762767483445,0.001,106520.0,106510.0,0.66182932]
[1762767483650,0.001,106520.0,106510.0,0.64229875]
[1762767483885,0.001,106520.0,106510.0,0.64182932]
[1762767484064,0.001,106520.0,106510.0,0.66182932]
[1762767484319,0.001,106520.0,106510.0,0.64229875]
[1762767484499,0.001,106520.0,106510.0,0.66229875]
[1762767484908,0.001,106520.0,106510.0,0.64229875]
[1762767485062,0.001,106520.0,106510.0,0.64182932]
[1762767485236,0.001,106520.0,106510.0,0.5952273]
[1762767485449,0.27735816,106520.0,106510.0,0.02865314]
[1762767485655,0.0896,106520.0,106510.0,0.02818408]
[1762767485865,0.27735816,106520.0,106510.0,0.02818408]
[1762767486733,0.0896,106520.0,106510.0,0.02818408]
[1762767486974,0.0896,106520.0,106510.0,0.35797259]
[1762767487166,0.27735816,106520.0,106510.0,0.35797259]
[1762767487472,0.0896,106520.0,106510.0,0.35797259]
[1762767487688,0.27735816,106520.0,106510.0,0.35797259]
[1762767487894,0.27735816,106520.0,106510.0,0.02818408]
[1762767488020,0.29416685,106520.0,106500.0,0.05002932]
[1762767488226,0.02716,106510.0,106500.0,0.23796675]
[1762767488474,0.06244,106520.0,106510.0,0.18777579]
[1762767488705,0.06244,106520.0,106510.0,0.33902318]
[1762767488914,0.0886,106520.0,106510.0,0.5175643]
[1762767489048,0.27635816,106520.0,106510.0,0.32978851]
[1762767489718,0.27635816,106520.0,106500.0,0.40862089]
[1762767489862,0.06917,106510.0,106500.0,0.596414]
[1762767490044,0.06917,106510.0,106500.0,0.59594541]
[1762767490247,0.20719143,106520.0,106500.0,0.59694541]
[1762767490514,0.24920143,106520.0,106510.0,0.32978851]
[1762767490831,0.25694579,106510.0,106500.0,0.40862107]
[1762767491005,0.25694579,106510.0,106500.0,0.4081523]
[1762767491218,0.25694579,106510.0,106500.0,0.4101523]
[1762767491560,0.06917,106510.0,106500.0,0.4101523]
[1762767492153,0.02716,106510.0,106500.0,0.59794572]
[1762767492357,0.02716,106510.0,106500.0,0.59694572]
[1762767492503,0.02716,106510.0,106500.0,0.59741467]
[1762767493108,0.06917,106510.0,106500.0,0.5974147]
[1762767493308,0.06917,106510.0,106500.0,0.6174147]
[1762767493513,0.06917,106510.0,106500.0,0.6184147]
[1762767493714,0.25694579,106510.0,106500.0,0.4101523]
[1762767494138,0.25694579,106510.0,106500.0,0.08036379]
[1762767494343,0.33220095,106510.0,106500.0,0.03033447]
[1762767494574,0.33220095,106510.0,106500.0,0.00214401]
[1762767494984,0.33220095,106510.0,106500.0,0.00114401]
[1762767495421,0.33320095,106510.0,106500.0,0.00014401]
[1762767496699,0.33220095,106510.0,106500.0,0.00014401]
[1762767497036,0.33620095,106510.0,106500.0,0.00014401]
[1762767497247,0.35563095,106510.0,106500.0,0.00014401]
[1762767497434,0.39789638,106510.0,106500.0,0.00014401]
[1762767497841,0.35563095,106510.0,106500.0,0.00014401]
[1762767502047,1.00841946,106510.0,106500.0,0.00014401]
[1762767502254,1.02598277,106510.0,106500.0,0.00014401]
[1762767502455,0.69619426,106510.0,106500.0,0.00014401]
[1762767502735,0.37319426,106510.0,106500.0,0.00014401]
[1762767502939,0.28037579,106510.0,106500.0,0.00014401]
[1762767504568,0.0926,106510.0,106500.0,0.51772594]
[1762767504763,0.28037579,106510.0,106500.0,0.32993252]
[1762767504966,0.0926,106510.0,106500.0,0.00014401]
[1762767505192,0.28037579,106510.0,106500.0,0.00014401]
[1762767505396,0.0926,106510.0,106500.0,0.51772594]
[1762767506611,0.05059,106510.0,106500.0,0.51772594]
[1762767506814,0.08807,106510.0,106500.0,0.51772594]
[1762767507362,0.08807,106510.0,106500.0,0.53772594]
[1762767507585,0.08807,106510.0,106500.0,0.51772594]
[1762767507797,0.004,106510.0,106500.0,0.84751445]
[1762767508098,0.004,106510.0,106500.0,0.51772594]
[1762767508306,0.004,106510.0,106500.0,0.53819541]
[1762767508536,0.004,106510.0,106500.0,0.56822473]
[1762767509212,0.04379,106510.0,106500.0,0.56822473]
[1762767509437,0.04479,106510.0,106500.0,0.56822473]
[1762767509647,0.04479,106510.0,106500.0,0.38043131]
[1762767509853,0.23256579,106510.0,106500.0,0.38043131]
[1762767509989,0.27004579,106510.0,106500.0,0.37996184]
[1762767511166,0.31776942,106510.0,106500.0,0.38021119]
[1762767511574,0.31776942,106510.0,106500.0,0.33018187]
[1762767511990,0.31776942,106510.0,106500.0,0.00014401]
[1762767512213,0.39302458,106510.0,106500.0,0.00014401]
[1762767514291,0.72306244,106510.0,106500.0,0.00014401]
[1762767515512,0.39302458,106510.0,106500.0,0.00014401]
[1762767517188,0.08227,106510.0,106500.0,0.33018187]
[1762767517391,0.27004579,106510.0,106500.0,0.33018187]
[1762767517568,0.08227,106510.0,106500.0,0.33018187]
[1762767517767,0.08227,106510.0,106500.0,0.56800461]
[1762767518011,0.08227,106510.0,106500.0,0.89804247]
[1762767518210,0.08227,106510.0,106500.0,0.56800461]
[1762767518751,0.27004579,106510.0,106500.0,0.56800461]
[1762767518958,0.27004579,106510.0,106500.0,0.71024905]
[1762767519382,0.27004579,106510.0,106500.0,0.38021119]
[1762767521102,0.27004579,106510.0,106500.0,0.05017333]
[1762767521276,0.27004579,106510.0,106500.0,0.00014401]
[1762767521277,0.37391865,106510.0,106500.0,0.00014401]
[1762767521475,0.37391865,106510.0,106500.0,0.05017333]
[1762767521674,0.34530095,106510.0,106500.0,0.38021119]
[1762767521902,0.27004579,106510.0,106500.0,0.38021119]
[1762767522732,0.27004579,106510.0,106500.0,0.05017333]
[1762767522933,0.27004579,106510.0,106500.0,0.38021119]
[1762767523567,0.34530095,106510.0,106500.0,0.00014401]
[1762767523741,0.43355388,106510.0,106500.0,0.00014401]
[1762767524172,0.76359174,106510.0,106500.0,0.00014401]
[1762767524343,0.43355388,106510.0,106500.0,0.00014401]
[1762767525829,0.76359174,106510.0,106500.0,0.00014401]
[1762767525966,0.43355388,106510.0,106500.0,0.00014401]
[1762767526401,0.76359174,106510.0,106500.0,0.00014401]
[1762767526977,0.67533881,106510.0,106500.0,0.00014401]
[1762767527838,0.69192922,106510.0,106500.0,0.00014401]
[1762767528152,0.67833881,106510.0,106500.0,0.00014401]
[1762767529404,0.34830095,106510.0,106500.0,0.00014401]
[1762767529610,0.67833881,106510.0,106500.0,0.00014401]
[1762767530495,0.77644054,106510.0,106500.0,0.00014401]
[1762767531536,1.09944054,106510.0,106500.0,0.00014401]
[1762767531761,1.11702717,106510.0,106500.0,0.00014401]
[1762767534168,1.01892544,106510.0,106500.0,0.00014401]
[1762767541120,1.38514558,106510.0,106500.0,0.00014401]
[1762767541266,0.10285663,106510.0,106500.0,0.00014401]
[1762767541464,0.02342,106510.0,106500.0,0.52721436]
[1762767541689,0.004,106510.0,106500.0,0.89851194]
[1762767541891,0.004,106510.0,106500.0,0.92622968]
[1762767542749,0.004,106510.0,106500.0,1.24922968]
[1762767542955,0.004,106510.0,106500.0,1.26637559]
[1762767543153,0.01943,106520.0,106510.0,0.18777579]
[1762767543469,0.01943,106520.0,106510.0,0.56838258]
[1762767544211,0.25121915,106530.0,106510.0,0.56838258]
[1762767544372,0.001,106520.0,106510.0,0.56838258]
[1762767545635,0.25121915,106530.0,106510.0,0.56838258]
[1762767546197,0.25321915,106530.0,106510.0,0.56838258]
[1762767546721,0.05609,106530.0,106520.0,0.51779602]
[1762767546936,0.20917054,106530.0,106520.0,0.38060626]
[1762767547144,0.23189054,106530.0,106520.0,0.33003786]
[1762767547476,0.26455054,106530.0,106520.0,0.33003786]
[1762767547902,0.07681,106530.0,106520.0,0.51779602]
[1762767548132,0.07681,106530.0,106520.0,0.51826541]
[1762767548531,0.26455054,106530.0,106520.0,0.51826541]
[1762767548808,0.26455054,106530.0,106520.0,0.33003786]
[1762767549195,0.26855054,106530.0,106520.0,0.33003786]
[1762767550709,0.3438057,106530.0,106510.0,0.23834446]
[1762767550889,0.01789,106520.0,106510.0,0.56838232]
[1762767551075,0.26855158,106530.0,106510.0,0.58838232]
[1762767551297,0.26855158,106530.0,106520.0,0.51779602]
[1762767551567,0.02343,106530.0,106520.0,0.51779602]
[1762767551728,0.004,106530.0,106520.0,0.84783388]
[1762767552052,0.02073,106540.0,106530.0,0.18774054]
[1762767552257,0.05539,106540.0,106530.0,0.52700425]
[1762767552402,0.07811,106540.0,106530.0,0.5177784]
[1762767552838,0.07811,106540.0,106530.0,0.51824775]
[1762767552839,0.04345,106540.0,106530.0,0.51824775]
[1762767553045,0.04345,106540.0,106530.0,0.00046935]
[1762767553046,0.26583292,106540.0,106530.0,0.00046935]
[1762767553258,0.27283292,106540.0,106530.0,0.35821823]
[1762767553932,0.27283292,106540.0,106530.0,0.02818037]
[1762767554136,0.18774054,106530.0,106520.0,0.38060639]
[1762767554373,0.07527,106530.0,106520.0,0.59607718]
[1762767554574,0.07527,106530.0,106520.0,0.59654571]
[1762767554780,0.22835054,106530.0,106520.0,0.59654571]
[1762767554996,0.22835054,106530.0,106520.0,0.40831902]
[1762767555296,0.22835054,106530.0,106520.0,0.59607718]
[1762767555297,0.04061,106530.0,106520.0,0.59607718]
[1762767555442,0.23235054,106530.0,106520.0,0.59654619]
[1762767555645,0.23235054,106530.0,106520.0,0.40831902]
[1762767555860,0.26701054,106530.0,106520.0,0.40831902]
[1762767556307,0.26701054,106530.0,106520.0,0.35821916]
[1762767556538,0.26701054,106530.0,106520.0,0.54597732]
[1762767556685,0.07927,106530.0,106520.0,0.54597732]
[1762767556885,0.07927,106530.0,106520.0,0.59654571]
[1762767557087,0.26701054,106530.0,106520.0,0.59654571]
[1762767557307,0.26701054,106530.0,106520.0,0.54644634]
[1762767557508,0.31455689,106530.0,106520.0,0.02865068]
[1762767557692,0.26701054,106530.0,106510.0,0.57777128]
[1762767557887,0.26302816,106520.0,106510.0,0.91956711]
[1762767558255,0.26302816,106520.0,106510.0,0.07875346]
[1762767558452,0.26302816,106520.0,106510.0,0.18777579]
[1762767558614,0.26302816,106520.0,106500.0,0.60612071]
[1762767559217,0.07527,106520.0,106510.0,0.51781365]
[1762767559419,0.07527,106520.0,106510.0,0.56791351]
[1762767559420,0.04061,106520.0,106510.0,0.56791351]
[1762767559617,0.04061,106520.0,106510.0,0.53781365]
[1762767559821,0.01789,106520.0,106510.0,0.53781365]
[1762767559991,0.01789,106520.0,106510.0,0.51769578]
[1762767560367,0.01789,106520.0,106510.0,0.56826507]
[1762767560519,0.01789,106520.0,106510.0,0.53804735]
[1762767560723,0.01789,106520.0,106510.0,0.51804735]
[1762767560931,0.01789,106520.0,106510.0,0.4687589]
[1762767561115,0.24029356,106530.0,106510.0,0.51932819]
[1762767561721,0.24029356,106530.0,106520.0,0.18775816]
[1762767561937,0.001,106520.0,106510.0,0.53932819]
[1762767562147,0.04,106520.0,106510.0,0.54751314]
[1762767562358,0.07495,106520.0,106510.0,0.54751314]
[1762767562560,0.07395,106520.0,106510.0,0.35997308]
[1762767562943,0.039,106520.0,106510.0,0.35997308]
[1762767563141,0.0162,106520.0,106510.0,0.35997308]
[1762767563731,0.20395816,106520.0,106510.0,0.35997308]
[1762767563940,0.20395816,106520.0,106510.0,0.35950365]
[1762767564316,0.20395816,106520.0,106510.0,0.07828481]
[1762767564518,0.18777579,106510.0,106500.0,0.73018714]
[1762767564840,0.18777579,106510.0,106500.0,0.75837209]
[1762767565265,0.23990816,106520.0,106500.0,0.94616544]
[1762767565472,0.23890816,106520.0,106500.0,0.94616544]
[1762767565898,0.23890816,106520.0,106500.0,0.94816544]
[1762767566123,0.18777579,106510.0,106500.0,0.94816544]
[1762767566278,0.23890816,106520.0,106500.0,0.94716544]
[1762767566858,0.05115,106520.0,106500.0,0.75937209]
[1762767567242,0.05115,106520.0,106500.0,0.75837209]
[1762767567443,0.0162,106520.0,106510.0,0.05009986]
[1762767567654,0.05284,106530.0,106510.0,0.34055337]
[1762767567856,0.01789,106530.0,106520.0,0.00923203]
[1762767568264,0.01789,106530.0,106520.0,0.34055073]
[1762767568465,0.02073,106540.0,106520.0,0.28121884]
[1762767568607,0.02073,106540.0,106530.0,0.05004046]
[1762767569032,0.04353,106540.0,106530.0,0.05004046]
[1762767569234,0.04353,106540.0,106530.0,0.3312593]
[1762767569482,0.07848,106540.0,106530.0,0.05050894]
[1762767569651,0.08448,106540.0,106530.0,0.05004046]
[1762767570780,0.07848,106540.0,106530.0,0.05004046]
[1762767571150,0.046,106540.0,106530.0,0.06452046]
[1762767572303,0.0232,106540.0,106530.0,0.12061046]
[1762767572465,0.0232,106540.0,106530.0,0.12107927]
[1762767573618,0.007,106540.0,106530.0,0.12107927]
[1762767575437,0.007,106540.0,106530.0,0.12061046]
[1762767576043,0.007,106540.0,106530.0,0.12107927]
[1762767576385,0.007,106540.0,106530.0,0.12061046]
[1762767577255,0.007,106540.0,106530.0,0.56182976]
[1762767577457,0.007,106540.0,106530.0,0.50256345]
[1762767577888,0.007,106540.0,106530.0,0.56926921]
[1762767578093,0.007,106540.0,106530.0,0.56973802]
[1762767578307,0.00023226,106560.0,106530.0,0.59791445]
[1762767578483,0.00023226,106560.0,106550.0,0.07200307]
[1762767578687,0.00023226,106560.0,106550.0,0.08648307]
[1762767578889,0.00023226,106560.0,106550.0,0.12064307]
[1762767579631,0.00071242,106560.0,106550.0,0.07057]
[1762767580012,0.01691242,106560.0,106550.0,0.03641]
[1762767580217,0.03971242,106560.0,106550.0,0.03641]
[1762767580377,0.03971242,106560.0,106550.0,0.01448]
[1762767580581,0.07466242,106560.0,106550.0,0.01448]
[1762767580945,0.04071242,106560.0,106550.0,0.01448]
[1762767581496,0.07566242,106560.0,106550.0,0.01448]
[1762767582765,0.01791242,106560.0,106550.0,0.03641]
[1762767583540,0.04071242,106560.0,106550.0,0.01448]
[1762767584129,0.01791242,106560.0,106550.0,0.07057]
[1762767585694,0.00171242,106560.0,106550.0,0.07057]
[1762767585905,0.00171242,106560.0,106550.0,0.03641]
[1762767586109,0.01791242,106560.0,106550.0,0.03641]
[1762767586231,0.01791242,106560.0,106550.0,0.07057]
[1762767586431,0.01791242,106560.0,106550.0,0.03641]
[1762767587480,0.01791242,106560.0,106550.0,0.07057]
[1762767587896,0.01791242,106560.0,106550.0,0.03641]
[1762767588057,0.07566242,106560.0,106550.0,0.03641]
[1762767588275,0.07566242,106560.0,106550.0,0.01448]
[1762767588471,0.49462178,106560.0,106540.0,0.09918148]
[1762767588711,0.47116082,106560.0,106540.0,0.09871307]
[1762767589251,0.47016082,106560.0,106540.0,0.09871307]
[1762767589425,0.14035619,106560.0,106540.0,0.09871307]
[1762767589762,0.16381715,106560.0,106540.0,0.10018151]
[1762767590248,3.16381715,106560.0,106540.0,0.10118151]
[1762767590466,3.14035619,106560.0,106540.0,0.10071307]
[1762767590620,3.47016082,106560.0,106540.0,0.10071307]
[1762767591015,3.14035619,106560.0,106540.0,0.06655307]
[1762767591218,3.47016082,106560.0,106540.0,0.06655307]
[1762767591622,0.039,106550.0,106540.0,0.05207307]
[1762767591822,0.09741316,106550.0,106540.0,0.002]
[1762767592047,0.40375463,106550.0,106540.0,0.002]
[1762767592449,0.40375463,106550.0,106540.0,0.001]
[1762767592856,0.40375463,106550.0,106540.0,0.002]
[1762767593062,0.50185636,106550.0,106530.0,0.05007307]
[1762767593321,0.4650784,106540.0,106520.0,0.06455307]
[1762767593605,0.03719,106540.0,106530.0,0.01393]
[1762767593809,0.06958,106540.0,106530.0,0.01393]
[1762767595568,0.07358,106540.0,106530.0,0.01393]
[1762767597245,0.01978,106540.0,106530.0,0.04455585]
[1762767597449,0.004,106540.0,106530.0,0.12572892]
[1762767597647,0.004,106540.0,106530.0,0.45553355]
[1762767597856,0.004,106540.0,106530.0,0.44677705]
[1762767598487,0.004,106540.0,106530.0,0.11697242]
[1762767598664,0.0162,106550.0,106530.0,0.11697242]
[1762767598868,0.04859,106550.0,106530.0,0.11697242]
[1762767599185,0.001,106540.0,106530.0,0.11697242]
[1762767599617,0.15835872,106550.0,106530.0,0.08587242]
[1762767599907,0.06976,106540.0,106530.0,0.06400307]
[1762767600311,0.4652584,106540.0,106520.0,0.05007307]
[1762767600516,0.08929937,106530.0,106520.0,0.05007307]
[1762767600899,0.06982,106530.0,106520.0,0.05007307]
[1762767602418,0.06982,106530.0,106520.0,0.05107307]
[1762767603379,0.39962463,106530.0,106520.0,0.05107307]
[1762767603595,0.39962463,106530.0,106520.0,0.002]
[1762767603794,0.44775247,106530.0,106520.0,0.002]
[1762767604609,0.44775247,106530.0,106520.0,0.001]
[1762767604822,0.44875247,106530.0,106520.0,0.001]
[1762767605423,0.44775247,106530.0,106510.0,0.05007307]
[1762767605624,0.06982,106520.0,106510.0,0.05007307]
[1762767606202,0.03743,106520.0,106510.0,0.06455307]
[1762767606420,0.01602,106520.0,106510.0,0.42499237]
[1762767606632,0.10053784,106530.0,106510.0,0.11705307]
[1762767606851,0.02006798,106530.0,106520.0,0.06698]
[1762767607228,0.06986798,106530.0,106510.0,0.42592695]
[1762767607437,0.06986798,106530.0,106510.0,0.06502232]
[1762767607842,0.02141,106520.0,106510.0,0.06502232]
[1762767608059,0.001,106520.0,106510.0,0.06455307]
[1762767608460,0.04845798,106530.0,106510.0,0.11705307]
[1762767608669,0.04845798,106530.0,106510.0,0.1175225]
[1762767608992,0.09644962,106530.0,106510.0,0.1175225]
[1762767609316,0.05045798,106530.0,106510.0,0.1175225]
[1762767609605,0.05045798,106530.0,106510.0,0.0864225]
[1762767609735,0.23820173,106530.0,106520.0,0.18775816]
[1762767609938,0.25960852,106530.0,106520.0,0.18775816]
[1762767610143,0.07186798,106530.0,106520.0,0.18775816]
[1762767610345,0.25960852,106530.0,106510.0,0.25278223]
[1762767610547,0.0538,106520.0,106510.0,0.25278223]
[1762767610756,0.0538,106520.0,106510.0,0.2523128]
[1762767611201,0.24155816,106520.0,106510.0,0.2523128]
[1762767611408,0.0538,106520.0,106510.0,0.2523128]
[1762767611607,0.24155816,106520.0,106510.0,0.2378328]
[1762767611825,0.24255816,106520.0,106510.0,0.2378328]
[1762767611973,0.24255816,106520.0,106510.0,0.18777579]
[1762767612379,0.25857816,106520.0,106510.0,0.18777579]
[1762767612775,0.07082,106520.0,106510.0,0.18777579]
[1762767614044,0.07082,106520.0,106510.0,0.20777579]
[1762767614206,0.07082,106520.0,106510.0,0.18777579]
[1762767614412,0.07082,106520.0,106510.0,0.20225579]
[1762767614607,0.07082,106520.0,106510.0,0.22225579]
[1762767615213,0.03843,106520.0,106510.0,0.20225579]
[1762767615417,0.03843,106520.0,106510.0,0.53206042]
[1762767615610,0.07082,106520.0,106510.0,0.22225579]
[1762767615754,0.03843,106520.0,106510.0,0.53206042]
[1762767615956,0.03843,106520.0,106510.0,0.20225579]
[1762767616202,0.22618816,106520.0,106510.0,0.20225579]
[1762767616404,0.25857816,106520.0,106510.0,0.20225579]
[1762767616955,0.25857816,106520.0,106510.0,0.18777579]
[1762767617528,0.07082,106520.0,106510.0,0.18777579]
[1762767617836,0.25857816,106520.0,106510.0,0.18777579]
[1762767618075,0.07082,106520.0,106510.0,0.18777579]
[1762767618360,0.001,106520.0,106510.0,0.25475579]
[1762767618604,0.001,106520.0,106510.0,0.24365579]
[1762767618769,0.01702,106520.0,106510.0,0.24365579]
[1762767618971,0.03843,106520.0,106510.0,0.20225579]
[1762767619410,0.03843,106520.0,106510.0,0.25232886]
[1762767619763,0.07082,106520.0,106510.0,0.25232886]
[1762767619960,0.03843,106520.0,106510.0,0.25232886]
[1762767620159,0.01702,106520.0,106510.0,0.30482886]
[1762767620363,0.01702,106520.0,106510.0,0.27372886]
[1762767620596,0.01702,106520.0,106510.0,0.29372886]
[1762767620758,0.01702,106520.0,106510.0,0.27372886]
[1762767622056,0.01702,106520.0,106510.0,0.27232886]
[1762767622256,0.01702,106520.0,106510.0,0.05007307]
[1762767622257,0.25459816,106520.0,106510.0,0.05007307]
[1762767622936,0.25459816,106520.0,106510.0,0.23784886]
[1762767623079,0.25459816,106520.0,106510.0,0.05007307]
[1762767623819,0.65009656,106520.0,106510.0,0.05007307]
[1762767623967,0.18777579,106510.0,106500.0,0.2664909]
[1762767624167,0.25054579,106510.0,106500.0,0.26602142]
[1762767624368,0.06277,106510.0,106500.0,0.26602142]
[1762767624810,0.25054579,106510.0,106500.0,0.26602142]
[1762767625522,0.25054579,106510.0,106500.0,0.23783533]
[1762767625960,0.25054579,106510.0,106500.0,0.23983533]
[1762767626694,0.25054579,106510.0,106500.0,0.05207307]
[1762767626931,0.25054579,106510.0,106500.0,0.23986649]
[1762767627134,0.25054579,106510.0,106500.0,0.05207307]
[1762767627813,0.25054579,106510.0,106500.0,0.23986649]
[1762767628066,0.25054579,106510.0,106500.0,0.05207307]
[1762767628782,0.66533265,106510.0,106500.0,0.05207307]
[1762767628952,0.33552802,106510.0,106500.0,0.05207307]
[1762767629527,0.33552802,106510.0,106500.0,0.05107307]
[1762767629721,0.25154579,106510.0,106500.0,0.23786649]
[1762767629948,0.25154579,106510.0,106500.0,0.05007307]
[1762767631142,0.25154579,106510.0,106490.0,0.25359852]
[1762767631349,0.21707342,106500.0,106490.0,0.05186205]
[1762767631473,0.64778182,106500.0,106490.0,0.05186205]
[1762767631824,0.31797719,106500.0,106490.0,0.05186205]
[1762767632304,0.31797719,106500.0,106490.0,0.05286205]
[1762767632707,0.31797719,106500.0,106490.0,0.05386205]
[1762767632918,0.31797719,106500.0,106490.0,0.05286205]
[1762767633109,0.38848525,106500.0,106490.0,0.05386205]
[1762767633434,0.64778182,106500.0,106490.0,0.05386205]
[1762767634226,0.64778182,106500.0,106490.0,0.00378898]
[1762767634935,0.64821369,106500.0,106490.0,0.00178898]
[1762767635130,0.64921369,106500.0,106490.0,0.00178898]
[1762767638578,0.22400342,106500.0,106490.0,0.00178898]
[1762767638818,0.18879342,106500.0,106490.0,0.25478004]
[1762767639026,0.001,106500.0,106490.0,0.58501654]
[1762767639685,0.01567,106500.0,106490.0,0.55409654]
[1762767640127,0.001,106500.0,106490.0,0.58501654]
[1762767640531,0.001,106500.0,106490.0,1.23825304]
[1762767641174,0.001,106500.0,106490.0,0.92801654]
[1762767641473,0.18779342,106500.0,106490.0,0.90848572]
[1762767641696,0.23172645,106510.0,106490.0,0.90948572]
[1762767641873,0.20246342,106500.0,106490.0,0.87956605]
[1762767642078,0.20246342,106500.0,106490.0,0.90775614]
[1762767642508,0.20246342,106500.0,106490.0,0.90675614]
[1762767642987,0.23172645,106510.0,106500.0,0.18779342]
[1762767643221,0.20246342,106500.0,106490.0,0.58475614]
[1762767643597,0.20246342,106500.0,106490.0,0.58428663]
[1762767644156,0.20246342,106500.0,106490.0,0.58328663]
[1762767644313,0.01467,106500.0,106490.0,0.61467615]
[1762767644523,0.20246342,106500.0,106490.0,0.61567615]
[1762767645139,0.25228342,106500.0,106490.0,0.36268509]
[1762767645338,0.25228342,106500.0,106490.0,0.36221557]